fUST/lending_fUST_20250819
["ID","MTS","AMOUNT","RATE_DAILY","PERIOD"]
[380099372,1755541846133,-480.0,0.00022191,2]
[380099373,1755541846142,-504.05,0.00022191,2]
[380099374,1755541846152,-480.0,0.00022191,2]
[380099375,1755541846162,-480.0,0.00022191,2]
[380099376,1755541846172,-570.96,0.00022191,2]
[380099377,1755541846181,-480.0,0.00022191,2]
[380099378,1755541846191,-572.27,0.00022191,2]
[380099379,1755541846201,-652.96,0.00022191,2]
[380099380,1755541846210,-480.0,0.00022191,2]
[380099381,1755541846219,-480.0,0.00022191,2]
[380099382,1755541846229,-480.0,0.00022191,2]
[380099383,1755541846239,-8394.39,0.00022191,2]
[380099384,1755541846248,-480.0,0.00022191,2]
[380099385,1755541846259,-480.0,0.00022191,2]
[380099386,1755541846268,-500.0,0.00022233,2]
[380099387,1755541846278,-500.0,0.00022233,2]
[380099388,1755541846287,-500.0,0.00022233,2]
[380099389,1755541846297,-221.54228483,0.00022233,2]
[380099390,1755541846307,-568.01389908,0.00022233,2]
[380099391,1755541846316,-185.47411264,0.0002237,2]
[380099392,1755541846326,-258.65788659,0.0002237,2]
[380099393,1755541846336,-500.0,0.0002237,2]
[380099394,1755541846345,-500.0,0.0002237,2]
[380099395,1755541846355,-500.0,0.0002237,2]
[380099396,1755541846367,-160.23904751,0.0002237,2]
[380099397,1755541846377,-2008.39358081,0.00022425,2]
[380099398,1755541846386,-480.0,0.00022465,2]
[380099399,1755541846495,-480.0,0.00022465,2]
[380099400,1755541846504,-480.0,0.00022465,2]
[380099401,1755541846514,-480.0,0.00022465,2]
[380099402,1755541846523,-480.0,0.00022465,2]
[380099403,1755541846533,-504.05,0.00022465,2]
[380099404,1755541846542,-480.0,0.00022465,2]
[380099405,1755541846552,-480.0,0.00022465,2]
[380099406,1755541846561,-570.96,0.00022465,2]
[380099407,1755541846571,-480.0,0.00022465,2]
[380099408,1755541846580,-572.27,0.00022465,2]
[380099409,1755541846590,-652.96,0.00022465,2]
[380099410,1755541846599,-480.0,0.00022465,2]
[380099411,1755541846609,-353.12037514,0.00022465,2]
[380099412,1755541846620,-400.46249553,0.00022465,2]
[380099413,1755541846630,-8394.39,0.00022465,2]
[380099414,1755541846640,-480.0,0.00022465,2]
[380099415,1755541846651,-480.0,0.00022465,2]
[380099416,1755541846661,-151.0,0.000226,9]
[380099417,1755541846670,-349.52870696,0.00022739,2]
[380099418,1755541846681,-217.34199229,0.00022739,2]
[380099419,1755541846691,-480.0,0.00022739,2]
[380099420,1755541846701,-481.74583573,0.00022739,2]
[380099421,1755541846711,-480.0,0.00022739,2]
[380099422,1755541846721,-504.05,0.00022739,2]
[380099423,1755541846730,-480.0,0.00022739,2]
[380099424,1755541846739,-480.0,0.00022739,2]
[380099425,1755541846749,-570.96,0.00022739,2]
[380099426,1755541846759,-244.22436017,0.00022739,2]
[380099427,1755541846768,-572.27,0.00022739,2]
[380099428,1755541846778,-652.96,0.00022739,2]
[380099430,1755541846787,-480.0,0.00022739,2]
[380099431,1755541846797,-8394.39,0.00022739,2]
[380099432,1755541846806,-480.0,0.00022739,2]
[380099433,1755541846816,-587.0,0.0002276,2]
[380099434,1755541846826,-797.63,0.00022796,2]
[380099435,1755541846835,-1000.0,0.00022918,2]
[380099436,1755541846845,-160.0,0.00023,2]
[380099437,1755541846855,-480.0,0.00023013,2]
[380099438,1755541846869,-480.0,0.00023013,2]
[380099439,1755541846878,-504.05,0.00023013,2]
[380099440,1755541846888,-480.0,0.00023013,2]
[380099441,1755541846898,-480.0,0.00023013,2]
[380099442,1755541846907,-570.96,0.00023013,2]
[380099443,1755541846916,-572.27,0.00023013,2]
[380099445,1755541846926,-652.96,0.00023013,2]
[380099446,1755541846935,-480.0,0.00023013,2]
[380099447,1755541846944,-8394.39,0.00023013,2]
[380099448,1755541846954,-480.0,0.00023013,2]
[380099449,1755541846964,-1034.77245164,0.0002308,2]
[380099450,1755541846974,-151.0,0.000232,6]
[380099451,1755541846983,-480.0,0.00023287,2]
[380099452,1755541846993,-480.0,0.00023287,2]
[380099453,1755541847003,-504.05,0.00023287,2]
[380099454,1755541847013,-496.10899159,0.00023287,2]
[380099455,1755541847022,-480.0,0.00023287,2]
[380099456,1755541847032,-570.96,0.00023287,2]
[380099457,1755541847042,-572.27,0.00023287,2]
[380099458,1755541847051,-652.96,0.00023287,2]
[380099459,1755541847061,-326.74,0.00023287,2]
[380099460,1755541847070,-8394.39,0.00023287,2]
[380099461,1755541847080,-560.67297102,0.00023287,2]
[380099462,1755541847090,-1500.0,0.00023466,2]
[380099463,1755541847098,-2008.39358081,0.0002354,2]
[380099464,1755541847108,-481.298794,0.00023561,2]
[380099465,1755541847125,-480.0,0.00023561,2]
[380099466,1755541847134,-504.05,0.00023561,2]
[380099467,1755541847143,-480.0,0.00023561,2]
[380099468,1755541847155,-570.96,0.00023561,2]
[380099469,1755541847164,-572.27,0.00023561,2]
[380099470,1755541847173,-652.96,0.00023561,2]
[380099471,1755541847183,-8394.39,0.00023561,2]
[380099472,1755541847193,-719.06568298,0.000236,2]
[380099473,1755541847202,-864.0,0.00023668,20]
[380099474,1755541847212,-187.0,0.000237,2]
[380099475,1755541847221,-187.0,0.00023742,2]
[380099476,1755541847231,-997.04,0.00023746,2]
[380099477,1755541847240,-187.0,0.00023793,2]
[380099478,1755541847250,-649.03,0.000238,7]
[380099479,1755541847259,-151.0,0.000238,6]
[380099480,1755541847268,-2656.2788,0.000238,2]
[380099481,1755541847317,-1615.61596495,0.000238,2]
[380099482,1755541847329,-8354.09837853,0.000238,2]
[380099483,1755541847340,-1474.14023591,0.000238,2]
[380099484,1755541847545,-500.0,0.00019172,2]
[380099485,1755541847556,-480.0,0.00019178,2]
[380099486,1755541847565,-480.0,0.00019178,2]
[380099487,1755541847575,-480.0,0.00019178,2]
[380099488,1755541847585,-480.000001,0.00019452,2]
[380099489,1755541847594,-586.09524346,0.00019452,2]
[380099490,1755541847604,-480.0,0.00020821,2]
[380099491,1755541847614,-480.0,0.00021095,2]
[380099492,1755541847625,-480.0,0.00021369,2]
[380099493,1755541847634,-215.45948207,0.00021643,2]
[380099494,1755541847643,-480.0,0.00022739,2]
[380099495,1755541847653,-480.0,0.00023013,2]
[380099496,1755541847662,-480.0,0.00023287,2]
[380099497,1755541847671,-594.59833144,0.00023561,2]
[380099498,1755541847681,-151.0,0.000237,5]
[380099499,1755541847690,-649.97662061,0.000238,2]
[380099500,1755541847699,-480.0,0.00023835,2]
[380099501,1755541847709,-504.05,0.00023835,2]
[380099502,1755541847719,-480.0,0.00023835,2]
[380099503,1755541847729,-570.96,0.00023835,2]
[380099504,1755541847738,-572.27,0.00023835,2]
[380099505,1755541847748,-652.96,0.00023835,2]
[380099506,1755541847759,-8394.39,0.00023835,2]
[380099507,1755541847768,-1100.0,0.00023865,2]
[380099508,1755541847778,-250.0,0.00023904,2]
[380099509,1755541847787,-187.0,0.00023917,2]
[380099510,1755541847797,-187.0,0.00023922,2]
[380099511,1755541847807,-2234.58,0.00024,7]
[380099512,1755541847817,-7023.86,0.00024,7]
[380099513,1755541847827,-216.85420361,0.00024,7]
[380099514,1755541847837,-232.18122251,0.00024,7]
[380099515,1755541847847,-160.0,0.00024,7]
[380099516,1755541847856,-187.0,0.00024011,2]
[380099517,1755541847867,-2000.0,0.00024014,2]
[380099518,1755541847877,-187.0,0.00024099,2]
[380099519,1755541847886,-480.0,0.00024109,2]
[380099520,1755541847895,-504.05,0.00024109,2]
[380099521,1755541847905,-480.0,0.00024109,2]
[380099522,1755541847914,-570.96,0.00024109,2]
[380099523,1755541847924,-572.27,0.00024109,2]
[380099524,1755541847933,-652.96,0.00024109,2]
[380099525,1755541847942,-8394.39,0.00024109,2]
[380099526,1755541847952,-313.02155131,0.00024152,2]
[380099527,1755541847961,-187.0,0.00024187,2]
[380099528,1755541847970,-187.0,0.00024199,2]
[380099529,1755541847980,-2153.0,0.00024221,2]
[380099530,1755541847990,-637.0,0.00024221,2]
[380099531,1755541847999,-408.0,0.00024221,2]
[380099532,1755541848008,-187.0,0.00024228,2]
[380099533,1755541848017,-187.0,0.00024263,2]
[380099534,1755541848027,-159.84577171,0.00024271,2]
[380099535,1755541848099,-27.15422829,0.00024271,2]
[380099536,1755541848109,-151.0,0.000243,5]
[380099537,1755541848124,-151.0,0.000243,8]
[380099538,1755541848134,-187.0,0.0002434,2]
[380099539,1755541848144,-149.888905,0.00024341,7]
[380099540,1755541848154,-149.888905,0.00024377,2]
[380099541,1755541848164,-480.0,0.00024383,2]
[380099542,1755541848173,-504.05,0.00024383,2]
[380099543,1755541848183,-14.7484868,0.00024383,2]
[380099544,1755541848201,-481.37633599,0.00024383,2]
[380099545,1755541848211,-570.96,0.00024383,2]
[380099546,1755541848220,-572.27,0.00024383,2]
[380099547,1755541848230,-652.96,0.00024383,2]
[380099548,1755541848240,-8394.39,0.00024383,2]
[380099549,1755541848249,-149.888905,0.00024386,7]
[380099550,1755541848259,-2500.0,0.00024562,2]
[380099551,1755541848268,-306.0,0.00024603,2]
[380099552,1755541848278,-153.0,0.00024603,2]
[380099553,1755541848287,-153.0,0.00024603,2]
[380099554,1755541848297,-187.0,0.00024635,2]
[380099555,1755541848306,-187.0,0.00024651,2]
[380099556,1755541848340,-2008.39358081,0.00024656,2]
[380099557,1755541848350,-480.0,0.00024657,2]
[380099558,1755541848359,-504.05,0.00024657,2]
[380099559,1755541848370,-570.96,0.00024657,2]
[380099560,1755541848379,-572.27,0.00024657,2]
[380099561,1755541848388,-652.96,0.00024657,2]
[380099562,1755541848397,-8394.39,0.00024657,2]
[380099563,1755541848407,-151.0,0.00024658,2]
[380099564,1755541848416,-151.0,0.00024658,2]
[380099565,1755541848426,-151.0,0.00024658,2]
[380099566,1755541848435,-185.7886812,0.00024658,2]
[380099567,1755541848445,-151.0,0.00024658,2]
[380099568,1755541848454,-151.28687626,0.00024658,2]
[380099569,1755541848463,-151.0,0.00024658,2]
[380099570,1755541848472,-269.4039774,0.00024658,2]
[380099571,1755541848482,-151.0,0.00024658,2]
[380099572,1755541848491,-198.0,0.00024658,2]
[380099573,1755541848499,-500.0,0.00024658,2]
[380099574,1755541848509,-198.0,0.00024658,2]
[380099575,1755541848517,-151.0,0.00024658,2]
[380099576,1755541848527,-1196.44,0.00024696,2]
[380099577,1755541848536,-823.0,0.00024804,2]
[380099578,1755541848545,-187.0,0.00024849,2]
[380099579,1755541848554,-500.0,0.00024873,2]
[380099580,1755541848564,-500.0,0.00024873,2]
[380099581,1755541848573,-200.0,0.0002489,3]
[380099582,1755541848582,-151.0,0.000249,7]
[380099583,1755541848592,-377.590242,0.000249,7]
[380099584,1755541848601,-377.590242,0.000249,7]
[380099585,1755541848611,-151.0,0.000249,7]
[380099586,1755541848621,-151.0,0.000249,7]
[380099587,1755541848631,-168.338074,0.000249,7]
[380099588,1755541848640,-168.338074,0.000249,7]
[380099589,1755541848650,-151.0,0.000249,7]
[380099590,1755541848660,-42965.52507454,0.000249,2]
[380099591,1755541848672,-46133.5306118,0.000249,2]
[380099602,1755542403169,499.94691932,0.00028767,120]
[380099603,1755542422965,200.0,0.00027,120]
[380099604,1755542423262,326.47368,0.000276,120]
[380099605,1755542431011,200.0,0.00026816,120]
[380099606,1755542434886,200.0,0.00027,120]
[380099607,1755542435186,200.0,0.000276,120]
[380099608,1755542435551,200.0,0.000282,120]
[380099609,1755542443822,-5748.40845351,0.00025,60]
[380099610,1755542443847,-63378.0,0.00025,60]
[380099611,1755542443894,-167.0,0.00026499,60]
[380099612,1755542443943,-201.65,0.0002703,60]
[380099613,1755542443970,-277.0,0.00027034,60]
[380099614,1755542443997,-149.888905,0.00027089,60]
[380099615,1755542444024,-149.888905,0.00027089,60]
[380099616,1755542444050,-149.888905,0.00027089,60]
[380099617,1755542444076,-200.4,0.0002716,60]
[380099618,1755542444102,-60000.0,0.00027384,90]
[380099619,1755542444130,-7000.0,0.00027508,90]
[380099620,1755542444155,-305.28,0.000276,60]
[380099621,1755542444179,-305.29,0.000276,60]
[380099622,1755542444205,-235.9854569,0.00027698,60]
[380099623,1755542444229,-10000.0,0.00027755,60]
[380099624,1755542444255,-10000.0,0.00027755,60]
[380099625,1755542444282,-10000.0,0.00027755,60]
[380099626,1755542444306,-10000.0,0.00027755,60]
[380099627,1755542444332,-2000.0,0.00027804,60]
[380099628,1755542444359,-70000.0,0.0002793,60]
[380099629,1755542444389,-3518.0,0.00028323,60]
[380099630,1755542444414,-200.2,0.00028416,60]
[380099631,1755542444562,-90000.0,0.00028469,90]
[380099632,1755542444591,-349.75,0.00028768,120]
[380099633,1755542444618,-150.0,0.000288,120]
[380099634,1755542444644,-1000.0,0.000288,120]
[380099635,1755542444670,-200.0,0.000288,120]
[380099636,1755542444695,-80000.0,0.0002893,70]
[380099637,1755542444720,-70000.0,0.0002894,90]
[380099638,1755542444746,-1137.20958214,0.00029,120]
[380099639,1755542444772,-200.0,0.000291,120]
[380099640,1755542444798,-200.0,0.000294,120]
[380099641,1755542444824,-200.0,0.000294,120]
[380099642,1755542444849,-200.0,0.000294,120]
[380099643,1755542444875,-1000.0,0.000295,120]
[380099644,1755542444901,-7000.0,0.000295,120]
[380099645,1755542444927,-20000.0,0.0002958,80]
[380099646,1755542444951,-40000.0,0.0002963,90]
[380099647,1755542444976,-235.77193,0.000298,120]
[380099648,1755542445001,-30000.0,0.0002983,90]
[380099649,1755542445026,-80000.0,0.0002985,90]
[380099650,1755542445056,-150.34265673,0.0003,60]
[380099651,1755542445081,-15000.0,0.0003,60]
[380099652,1755542445105,-800.0,0.0003,60]
[380099653,1755542445133,-200.0,0.0003,120]
[380099654,1755542445169,-350.0,0.0003,120]
[380099655,1755542445195,-2000.0,0.0003,60]
[380099656,1755542445220,-12675.74622655,0.0003,120]
[380099657,1755542445246,-457.20435592,0.0003,120]
[380099658,1755542445271,-12683.78573522,0.0003,120]
[380099659,1755542445299,-200.0,0.0003,120]
[380099660,1755542445325,-365.19180986,0.0003,120]
[380099661,1755542445351,-417.15472785,0.0003,120]
[380099662,1755542445378,-417.15472785,0.0003,120]
[380099663,1755542445403,-1010.94,0.00030137,120]
[380099664,1755542445428,-2000.0,0.00030137,120]
[380099665,1755542445453,-466.19588,0.000302,120]
[380099666,1755542445478,-200.0,0.000302,120]
[380099667,1755542445502,-596.13094,0.000302,120]
[380099668,1755542445527,-367.8107,0.000302,120]
[380099669,1755542445558,-200.0,0.000302,120]
[380099670,1755542445583,-235.77203,0.000302,120]
[380099671,1755542445608,-262.32682,0.000302,120]
[380099672,1755542445635,-375.63777,0.000302,120]
[380099673,1755542445661,-1003.25,0.000305,120]
[380099674,1755542445686,-820.61201,0.000306,120]
[380099675,1755542445711,-215.15992,0.000306,120]
[380099676,1755542445737,-200.0,0.000306,120]
[380099677,1755542445763,-2000.0,0.00030685,120]
[380099678,1755542445788,-162.61990642,0.000308,120]
[380099679,1755542445812,-1748.59,0.000309,120]
[380099680,1755542445837,-777.0,0.00030964,120]
[380099681,1755542445862,-1000.0,0.00031,120]
[380099682,1755542445887,-160.0,0.00031,120]
[380099683,1755542445912,-843.29866057,0.00031,120]
[380099684,1755542445938,-843.29866057,0.00031,120]
[380099685,1755542445963,-216.72950928,0.00031,120]
[380099686,1755542445987,-232.03317797,0.00031,120]
[380099687,1755542446013,-1430.0,0.00031,120]
[380099688,1755542446038,-883.72,0.00031,120]
[380099689,1755542446063,-2000.0,0.00031,120]
[380099690,1755542446087,-156.0,0.00031,120]
[380099691,1755542446113,-843.71309931,0.00031,120]
[380099692,1755542446138,-18923.31072141,0.00031,120]
[380099693,1755542446164,-160.0,0.00031,120]
[380099694,1755542446190,-17177.25850987,0.00031,100]
[380099695,1755542446213,-160.0,0.00031,120]
[380099696,1755542446238,-843.81736472,0.00031,120]
[380099697,1755542446262,-160.0,0.00031,120]
[380099698,1755542446289,-232.18122251,0.00031,120]
[380099699,1755542446314,-168.0,0.00031,120]
[380099700,1755542446340,-154.15,0.00031002,60]
[380099701,1755542446365,-380.9338,0.000312,120]
[380099702,1755542446390,-2000.0,0.00031233,120]
[380099703,1755542446416,-651.76,0.00031328,120]
[380099704,1755542446440,-820.61201,0.000315,120]
[380099705,1755542446466,-215.15992,0.000315,120]
[380099706,1755542446491,-653.0,0.0003153,120]
[380099707,1755542446516,-2000.0,0.00031781,120]
[380099708,1755542446540,-70000.0,0.0003185,90]
[380099709,1755542446566,-466.19588,0.000319,120]
[380099710,1755542446591,-596.13094,0.000319,120]
[380099711,1755542446616,-244.54952,0.000319,120]
[380099712,1755542446643,-336.34695,0.000319,120]
[380099713,1755542446666,-2467.0634,0.00032,120]
[380099714,1755542446693,-264.0,0.00032,120]
[380099715,1755542446718,-350.0,0.00032,120]
[380099716,1755542446744,-1000.0,0.00032,120]
[380099717,1755542446770,-156.0,0.00032,120]
[380099718,1755542446794,-2000.0,0.00032329,120]
[380099719,1755542446818,-2000.0,0.00032329,120]
[380099720,1755542446842,-820.61201,0.000324,120]
[380099721,1755542446866,-215.15992,0.000324,120]
[380099722,1755542446892,-2000.0,0.00032877,120]
[380099723,1755542446916,-2000.0,0.00032877,120]
[380099724,1755542446942,-3683.05,0.000329,120]
[380099725,1755542447072,-276.51,0.00032942,60]
[380099726,1755542447097,-1000.0,0.00033,120]
[380099727,1755542447120,-1000.0,0.00033,120]
[380099728,1755542447146,-995.18728542,0.00033,120]
[380099729,1755542447172,-156.0,0.00033,120]
[380099730,1755542447197,-276.51,0.00033042,60]
[380099731,1755542447222,-276.51,0.00033142,60]
[380099732,1755542447249,-276.51,0.00033242,60]
[380099733,1755542447276,-276.51,0.00033342,60]
[380099734,1755542447304,-276.51,0.00033442,60]
[380099735,1755542447330,-276.51,0.00033542,60]
[380099736,1755542447356,-100000.0,0.0003359,80]
[380099737,1755542447384,-276.51,0.00033642,60]
[380099738,1755542447410,-276.51,0.00033742,60]
[380099739,1755542447435,-276.51,0.00033842,60]
[380099740,1755542447462,-17957.38908442,0.0003389,90]
[380099741,1755542447926,150.5,0.0002191,120]
[380099742,1755542448242,150.5,0.0002191,120]
[380099743,1755542448547,150.5,0.000219,120]
[380099744,1755542448693,150.5,0.000219,120]
[380099745,1755542449150,150.5,0.0002189,120]
[380099746,1755542449182,247.26,0.0002189,120]
[380099747,1755542449607,150.5,0.00024889,120]
[380099748,1755542450056,150.5,0.00024879,120]
[380099749,1755542450501,153.17,0.00024869,120]
[380099750,1755542452517,-62042.61091558,0.0003389,90]
[380099751,1755542452543,-276.51,0.00033942,60]
[380099752,1755542452568,-300.0,0.00034,120]
[380099753,1755542452592,-6000.0,0.00034,120]
[380099754,1755542452617,-1000.0,0.00034,120]
[380099755,1755542452642,-156.0,0.00034,120]
[380099756,1755542452668,-276.51,0.00034042,60]
[380099757,1755542452692,-276.51,0.00034142,60]
[380099758,1755542452716,-40000.0,0.0003418,90]
[380099759,1755542452739,-200.0,0.00034238,120]
[380099760,1755542452763,-200.0,0.00034238,120]
[380099761,1755542452787,-200.0,0.00034238,120]
[380099762,1755542452810,-200.0,0.00034238,120]
[380099763,1755542452834,-276.80744571,0.00034242,60]
[380099764,1755542452858,-1949.0,0.00034247,60]
[380099765,1755542452882,-164.0,0.00034767,72]
[380099766,1755542452907,-90000.0,0.0003485,90]
[380099767,1755542452931,-1000.0,0.00035,120]
[380099768,1755542452955,-17523.78822732,0.00035,120]
[380099769,1755542452979,-736.86235635,0.00035,120]
[380099770,1755542453004,-501.53265847,0.00035,120]
[380099771,1755542453029,-235.35,0.00035,69]
[380099772,1755542453054,-6874.12104973,0.00035,120]
[380099773,1755542453079,-1748.59,0.00035,120]
[380099774,1755542453104,-302.48909817,0.00035,120]
[380099775,1755542453129,-579.81320729,0.00035,120]
[380099776,1755542453154,-200.0,0.00035,120]
[380099777,1755542453177,-2000.0,0.00035,90]
[380099778,1755542453203,-10000.0,0.00035,120]
[380099779,1755542453228,-1038.97,0.00035,120]
[380099780,1755542453252,-156.0,0.000351,120]
[380099781,1755542453275,-597.0,0.00035616,120]
[380099782,1755542453303,-1890.43754865,0.00035999,120]
[380099783,1755542453329,-500.0,0.00036,120]
[380099784,1755542453353,-6000.0,0.00036,120]
[380099785,1755542453381,-1000.0,0.00036,120]
[380099786,1755542453406,-23169.22742851,0.00036,60]
[380099787,1755542453430,-1184.32152647,0.00036,120]
[380099788,1755542453454,-156.0,0.000361,120]
[380099789,1755542453478,-1038.97,0.000364,120]
[380099790,1755542453503,-548.4032892,0.000365,120]
[380099791,1755542453526,-14143.50793357,0.00036896,60]
[380099792,1755542453549,-2000.0,0.000369,120]
[380099793,1755542453574,-1000.0,0.00037,120]
[380099794,1755542453600,-156.0,0.000371,120]
[380099795,1755542453738,-1000.0,0.000375,120]
[380099796,1755542453766,-156.9,0.000375,112]
[380099797,1755542453792,-1038.97,0.000378,120]
[380099798,1755542453819,-2000.0,0.000379,120]
[380099799,1755542453844,-500.0,0.00038,120]
[380099800,1755542453869,-2046.0,0.00038,120]
[380099801,1755542453893,-20163.0,0.00038,120]
[380099802,1755542453919,-156.0,0.000381,120]
[380099803,1755542453945,-1978.27428376,0.000382,120]
[380099804,1755542453970,-53611.10821669,0.000385,120]
[380099805,1755542453996,-2000.0,0.000389,120]
[380099806,1755542454024,-615550.41481453,0.00039,60]
[380099807,1755542458395,-47955.62277505,0.00039,60]
[380099808,1755542458420,-151.0,0.00039,120]
[380099809,1755542458447,-17724.49510704,0.00039,120]
[380099810,1755542458470,-78952.78194059,0.00039,60]
[380099811,1755542458494,-10000.0,0.00039,120]
[380099812,1755542458519,-156.0,0.000391,120]
[380099813,1755542458545,-1038.97,0.000392,120]
[380099814,1755542458570,-1748.59,0.000393,120]
[380099815,1755542458596,-200.11742741,0.00039877,120]
[380099816,1755542458624,-579.31528965,0.00039877,120]
[380099817,1755542458652,-1000.0,0.000399,120]
[380099818,1755542458679,-2000.0,0.000399,120]
[380099819,1755542458707,-2755.87708817,0.0003999,120]
[380099820,1755542458736,-500.0,0.0004,120]
[380099821,1755542458761,-1998.32037739,0.0004,120]
[380099822,1755542458786,-256.89724658,0.0004,120]
[380099823,1755542458811,-534.81261128,0.0004,120]
[380099824,1755542458836,-3771.48332252,0.0004,120]
[380099825,1755542458861,-1453.34370127,0.0004,120]
[380099826,1755542458888,-2000.0,0.0004,120]
[380099827,1755542458912,-160.0,0.0004,120]
[380099828,1755542458938,-526.52420467,0.0004,120]
[380099829,1755542458963,-151.0,0.0004,120]
[380099830,1755542458988,-1449.44474902,0.0004,120]
[380099831,1755542459013,-218.6333,0.0004,120]
[380099832,1755542459038,-232.11368524,0.0004,120]
[380099833,1755542459063,-9176.9962447,0.0004,120]
[380099834,1755542459088,-255.93565597,0.0004,120]
[380099835,1755542459113,-2000.0,0.0004,120]
[380099836,1755542459137,-156.0,0.000401,120]
[380099837,1755542459162,-232.638,0.00040503,120]
[380099838,1755542459187,-1038.97,0.000406,120]
[380099839,1755542459211,-2000.0,0.000409,120]
[380099840,1755542459236,-415.2,0.00041041,120]
[380099841,1755542459261,-415.2,0.00041041,120]
[380099842,1755542459287,-200.0,0.00041085,120]
[380099843,1755542459311,-200.0,0.00041085,120]
[380099844,1755542459336,-200.0,0.00041085,120]
[380099845,1755542459364,-200.0,0.00041085,120]
[380099846,1755542459388,-354.04593701,0.00041085,120]
[380099847,1755542459413,-2851.96,0.00041096,120]
[380099848,1755542461194,500.0,0.000239,120]
[380099849,1755542462080,500.0,0.000239,120]
[380099850,1755542462741,500.0,0.000239,120]
[380099851,1755542463527,500.0,0.000239,120]
[380099852,1755542464436,500.0,0.000239,120]
[380099853,1755542465113,500.0,0.000239,120]
[380099854,1755542466268,500.0,0.000239,120]
[380099855,1755542467117,500.0,0.000239,120]
[380099856,1755542467947,240.58,0.000239,120]
[380099857,1755542475238,684.71790231,0.00027002,120]
[380099858,1755542491296,200.0,0.00027125,120]
[380099859,1755542516725,158.923647,0.00013699,2]
[380099860,1755542533698,404.82345876,0.00024658,120]
[380099861,1755542534274,500.0,0.000239,120]
[380099862,1755542535039,500.0,0.000239,120]
[380099863,1755542535808,500.0,0.000239,120]
[380099864,1755542536579,500.0,0.000239,120]
[380099865,1755542537349,500.0,0.000239,120]
[380099866,1755542538426,500.0,0.000239,120]
[380099867,1755542539264,500.0,0.000239,120]
[380099868,1755542540035,500.0,0.000239,120]
[380099869,1755542540805,240.58,0.000239,120]
[380099870,1755542551071,200.0,0.00027102,120]
[380099871,1755542555205,500.0,0.00027945,120]
[380099872,1755542555445,500.0,0.00027945,120]
[380099873,1755542555717,500.0,0.00027945,120]
[380099874,1755542555967,500.0,0.00027945,120]
[380099875,1755542556213,407.80381371,0.00027945,120]
[380099877,1755542586698,684.71790231,0.00027006,120]
[380099878,1755542611238,200.0,0.00026047,120]
[380099880,1755542671790,200.0,0.00026168,120]
[380099883,1755542703173,499.94691932,0.00028767,120]
[380099886,1755542731264,200.0,0.00028489,120]
[380099888,1755542795152,-200.90242193,0.00018603,2]
[380099889,1755542795174,-245.25127041,0.00019174,2]
[380099890,1755542808390,150.5,0.0002191,120]